bitfinex/quotes_SOLUSD_20220113
["timestamp","ask_amount","ask_price","bid_price","bid_amount"]
[1642070902375,29.19076835,152.64,152.57,9.83]
[1642070906878,31.06260824,152.64,152.57,9.83]
[1642070907086,28.44160824,152.64,152.57,9.83]
[1642070913090,1.87183989,152.63,152.57,9.83]
[1642070913289,4.49283989,152.63,152.57,9.83]
[1642070913491,4.74283989,152.63,152.57,9.83]
[1642070915791,2.12183989,152.63,152.57,9.83]
[1642070916997,0.25,152.63,152.57,9.83]
[1642070917395,26.56976835,152.64,152.57,9.83]
[1642070919196,2.621,152.63,152.57,9.83]
[1642070919520,2.871,152.63,152.57,9.83]
[1642070920622,0.25,152.63,152.57,9.83]
[1642070920821,53.32856835,152.64,152.57,9.83]
[1642070924026,53.32856835,152.64,152.56,9.8305]
[1642070925427,53.32856835,152.64,152.57,22.8061]
[1642070925827,63.15946835,152.64,152.57,22.8061]
[1642070926027,72.65946835,152.64,152.57,22.8061]
[1642070926230,72.65946835,152.64,152.55,2.621]
[1642070926430,78.30946835,152.64,152.55,2.621]
[1642070927027,65.88,152.63,152.55,2.621]
[1642070927228,31.36032694,152.61,152.55,2.621]
[1642070927432,12.121,152.62,152.55,2.621]
[1642070927433,24.72743706,152.58,152.55,2.621]
[1642070927828,2.621,152.57,152.55,2.621]
[1642070928028,2.871,152.57,152.55,2.621]
[1642070929930,0.25,152.57,152.55,2.621]
[1642070930329,2.621,152.57,152.55,2.621]
[1642070930528,2.871,152.57,152.55,2.621]
[1642070932431,12.7063,152.57,152.55,2.621]
[1642070935436,22.2063,152.57,152.55,2.621]
[1642070947875,88.0863,152.57,152.55,2.621]
[1642070956186,89.95345795,152.57,152.55,2.621]
[1642070962094,37.86715795,152.56,152.55,2.621]
[1642070962294,47.70345795,152.56,152.55,2.621]
[1642070962596,47.95345795,152.56,152.55,2.621]
[1642070967198,11.95345795,152.56,152.55,2.621]
[1642070969504,40.95345795,152.56,152.55,2.621]
[1642070971309,106.83345795,152.56,152.55,2.621]
[1642070972538,77.83345795,152.56,152.55,2.621]
[1642070979844,75.9663,152.56,152.55,2.621]
[1642070981143,77.83345795,152.56,152.55,2.621]
[1642070988669,80.45545795,152.56,152.55,2.621]
[1642070992591,80.45545795,152.56,152.49,24.0699]
[1642070992592,89.95545795,152.56,152.49,24.0699]
[1642070992792,9.8382,152.53,152.49,24.0699]
[1642070992993,78.5902,152.53,152.49,24.0699]
[1642070994093,80.45735795,152.53,152.49,24.0699]
[1642070994893,78.5902,152.53,152.49,24.0699]
[1642071003200,12.7102,152.53,152.49,24.0699]
[1642071006504,2.872,152.53,152.49,24.0699]
[1642071007906,12.7097,152.53,152.49,24.0699]
[1642071017146,65.88,152.52,152.49,24.0699]
[1642071017345,26.14395656,152.51,152.49,24.0699]
[1642071017549,26.39395656,152.51,152.46,26.1005]
[1642071017749,26.39395656,152.51,152.46,2.622]
[1642071018750,36.23295656,152.51,152.46,2.622]
[1642071019853,65.88,152.47,152.42,74.47928179]
[1642071020053,2.623,152.46,152.42,1.86988179]
[1642071020453,2.873,152.46,152.42,1.86988179]
[1642071020654,30.15750119,152.45,152.42,1.86988179]
[1642071020854,2.624,152.44,152.42,1.86988179]
[1642071021055,2.874,152.44,152.39,24.9162]
[1642071022061,12.7171,152.44,152.39,24.9162]
[1642071028963,12.7171,152.44,152.36,2.624]
[1642071029163,23.86622182,152.44,152.35,2.624]
[1642071029363,23.86622182,152.44,152.33,98.49178179]
[1642071030465,65.88,152.41,152.33,96.6219]
[1642071030664,25.11477827,152.37,152.33,96.6219]
[1642071030865,25.11477827,152.37,152.33,22.9354]
[1642071031065,25.36477827,152.37,152.33,22.9354]
[1642071032270,9.8479,152.36,152.33,22.9354]
[1642071032474,10.0979,152.36,152.33,22.9354]
[1642071032667,10.0979,152.36,152.3,2.624]
[1642071033069,75.9779,152.36,152.3,2.624]
[1642071033270,10.0979,152.36,152.3,2.624]
[1642071033871,12.7229,152.36,152.3,2.624]
[1642071034876,12.7229,152.36,152.29,23.3478]
[1642071035893,22.2229,152.36,152.29,23.3478]
[1642071036492,23.87202182,152.36,152.29,23.3478]
[1642071038093,89.75202182,152.36,152.29,23.3478]
[1642071043100,89.75202182,152.36,152.28,22.7816]
[1642071044703,99.63602182,152.36,152.28,22.7816]
[1642071045105,105.81102182,152.36,152.28,22.7816]
[1642071045401,105.81102182,152.36,152.27,77.3707]
[1642071045402,105.81102182,152.36,152.25,2.626]
[1642071045603,105.81102182,152.36,152.23,2.626]
[1642071045804,24.8693,152.35,152.24,23.4949]
[1642071046004,25.1026869,152.29,152.24,23.4949]
[1642071046403,25.3526869,152.29,152.24,23.4949]
[1642071047005,9.8531,152.28,152.24,23.4949]
[1642071047405,10.1031,152.28,152.24,23.4949]
[1642071052717,2.626,152.27,152.22,79.7605]
[1642071053014,9.8559,152.25,152.22,79.7605]
[1642071053216,9.8559,152.25,152.21,24.626]
[1642071053414,10.1059,152.25,152.21,24.626]
[1642071053616,12.7319,152.25,152.21,24.626]
[1642071053814,12.7319,152.25,152.18,25.99028179]
[1642071054113,12.7319,152.25,152.18,28.61628179]
[1642071054314,12.7319,152.25,152.18,26.7464]
[1642071056248,12.7319,152.25,152.18,24.1204]
[1642071060152,9.5,152.24,152.18,24.1204]
[1642071060355,68.506,152.23,152.18,24.1204]
[1642071060551,9.8594,152.21,152.14,1.86988179]
[1642071060752,9.8594,152.21,152.15,2.628]
[1642071060952,10.1094,152.21,152.15,2.628]
[1642071061153,75.9894,152.21,152.15,2.628]
[1642071061352,27.3530654,152.2,152.15,2.628]
[1642071061551,31.88018722,152.2,152.12,48.73868179]
[1642071061851,31.88018722,152.2,152.12,51.36668179]
[1642071061852,9.8603,152.18,152.12,51.36668179]
[1642071062151,78.6183,152.18,152.12,46.8688]
[1642071062553,12.7383,152.18,152.12,46.8688]
[1642071065454,10.1103,152.18,152.12,46.8688]
[1642071068455,9.5,152.17,152.12,46.8688]
[1642071068657,9.8622,152.15,152.12,46.8688]
[1642071068855,29.95754257,152.14,152.12,46.8688]
[1642071069057,30.20754257,152.14,152.12,46.8688]
[1642071069457,30.20754257,152.14,152.08,2.629]
[1642071069960,30.20754257,152.14,152.06,26.0634]
[1642071070156,40.06964257,152.14,152.07,9.8621]
[1642071070357,40.06964257,152.14,152.08,2.629]
[1642071078366,40.06964257,152.14,152.08,25.5924]
[1642071081600,40.06964257,152.14,152.08,22.9634]
[1642071082399,40.06964257,152.14,152.07,2.629]
[1642071082400,65.88,152.13,152.07,2.629]
[1642071082601,9.8649,152.1,152.05,27.6224]
[1642071082999,10.1149,152.1,152.05,29.49228179]
[1642071084000,9.8639,152.11,152.05,27.6224]
[1642071084400,10.1139,152.11,152.05,27.6224]
[1642071086303,10.1139,152.11,152.05,37.4861]
[1642071087807,0.25,152.11,152.05,37.4861]
[1642071088007,10.1133,152.12,152.05,37.4861]
[1642071088208,0.25,152.12,152.05,37.4861]
[1642071088508,2.629,152.13,152.06,25.21586985]
[1642071088709,29.95754257,152.14,152.08,9.8617]
[1642071090308,29.95754257,152.14,152.09,2.629]
[1642071090509,29.95754257,152.14,152.08,12.4907]
[1642071090909,30.20754257,152.14,152.08,12.4907]
[1642071091311,40.06974257,152.14,152.08,12.4907]
[1642071091510,40.06974257,152.14,152.08,2.629]
[1642071092511,40.06974257,152.14,152.07,35.83838179]
[1642071092812,40.06974257,152.14,152.07,33.9685]
[1642071094014,40.06974257,152.14,152.07,35.83838179]
[1642071095812,2.629,152.13,152.07,35.83838179]
[1642071096015,2.879,152.13,152.07,35.83838179]
[1642071096412,2.879,152.13,152.07,33.9685]
[1642071097817,2.879,152.13,152.07,39.9685]
[1642071098617,2.879,152.13,152.07,33.9685]
[1642071098819,2.879,152.13,152.07,35.83838179]
[1642071101520,0.25,152.13,152.07,35.83838179]
[1642071101825,39.57034257,152.14,152.07,25.97598179]
[1642071102020,39.82034257,152.14,152.07,26.22598179]
[1642071102922,39.82034257,152.14,152.08,1.86988179]
[1642071105325,2.629,152.13,152.08,1.86988179]
[1642071105525,0.25,152.13,152.08,1.86988179]
[1642071105724,0.25,152.13,152.07,35.83818179]
[1642071106124,0.25,152.13,152.07,36.08818179]
[1642071106524,0.25,152.13,152.08,1.86988179]
[1642071106724,39.57034257,152.14,152.08,1.86988179]
[1642071106725,39.82034257,152.14,152.08,1.86988179]
[1642071108730,39.82034257,152.14,152.08,1.36988179]
[1642071108932,39.82034257,152.14,152.07,34.2183]
[1642071110131,29.95754257,152.14,152.07,34.2183]
[1642071110330,32.58654257,152.14,152.07,34.2183]
[1642071111534,32.58654257,152.14,152.07,40.2183]
[1642071112032,32.58654257,152.14,152.07,34.2183]
[1642071112635,42.44914257,152.14,152.07,34.2183]
[1642071112834,39.82014257,152.14,152.07,34.2183]
[1642071113934,2.629,152.13,152.07,33.9683]
[1642071114437,2.879,152.13,152.07,33.9683]
[1642071115067,2.879,152.13,152.07,30.1061]
[1642071115264,2.879,152.13,152.07,24.1061]
[1642071116665,0.25,152.13,152.07,24.3561]
[1642071116967,29.95754257,152.14,152.07,24.3561]
[1642071117167,32.58654257,152.14,152.07,24.3561]
[1642071118169,32.58654257,152.14,152.07,34.2183]
[1642071118369,32.58654257,152.14,152.07,33.9683]
[1642071118969,32.58654257,152.14,152.07,34.2183]
[1642071122478,32.58654257,152.14,152.07,40.2183]
[1642071125381,32.58654257,152.14,152.07,34.2183]
[1642071125580,32.58654257,152.14,152.07,40.2183]
[1642071125780,32.58654257,152.14,152.07,34.2183]
[1642071126380,32.58654257,152.14,152.07,40.2183]
[1642071126582,32.58654257,152.14,152.07,34.2183]
[1642071127180,32.58654257,152.14,152.07,33.9683]
[1642071128684,42.44904257,152.14,152.07,9.8622]
[1642071128887,42.44904257,152.14,152.05,2.629]
[1642071128888,65.88,152.13,152.05,2.629]
[1642071129087,2.63,152.12,152.05,2.629]
[1642071129486,2.88,152.12,152.05,2.629]
[1642071129686,22.91509385,152.11,152.05,2.629]
[1642071129886,2.63,152.1,152.04,24.8635]
[1642071130090,2.88,152.1,152.04,24.8635]
[1642071130287,12.7448,152.1,152.04,24.8635]
[1642071130489,12.7448,152.1,152.04,24.7635]
[1642071132590,12.7448,152.1,152.04,25.0135]
[1642071132889,12.7448,152.1,152.04,24.7635]
[1642071134895,12.7448,152.1,152.02,2.63]
[1642071135095,37.564,152.1,152.02,2.63]
[1642071136394,37.564,152.1,152.01,2.63]
[1642071136596,37.564,152.1,152.01,2.88]
[1642071139699,103.444,152.1,152.01,2.88]
[1642071143306,103.444,152.1,152.01,2.63]
[1642071143506,103.444,152.1,152.01,2.88]
[1642071145006,112.944,152.1,152.01,2.88]
[1642071147510,112.944,152.1,152.01,2.63]
[1642071148645,112.944,152.1,152.0,27.3231]
[1642071148847,112.944,152.1,152.0,27.5731]
[1642071151152,164.406,152.1,152.0,2.63]
[1642071151354,164.406,152.1,151.97,2.63]
[1642071151552,1.64912182,152.09,151.95,2.63]
[1642071151751,9.8708,152.02,151.95,2.63]
[1642071151952,10.1208,152.02,151.95,26.9119]
[1642071152151,91.138733,152.01,151.95,2.63]
[1642071152353,2.63,152.0,151.91,96.64072085]
[1642071152555,2.88,152.0,151.91,96.64072085]
[1642071152752,9.8726,151.98,151.91,96.64072085]
[1642071152951,2.632,151.97,151.91,3.74072085]
[1642071153153,2.632,151.97,151.89,100.1348]
[1642071153353,24.79139455,151.96,151.89,100.1348]
[1642071153553,25.04139455,151.96,151.89,100.1348]
[1642071154154,9.8745,151.95,151.89,100.1348]
[1642071154556,10.1245,151.95,151.89,27.5413]
[1642071154756,10.1245,151.95,151.89,2.632]
[1642071154957,2.632,151.94,151.86,2.632]
[1642071155161,9.696,151.94,151.86,2.632]
[1642071155357,9.8766,151.92,151.86,2.632]
[1642071155556,24.07515472,151.91,151.86,2.632]
[1642071155760,24.07515472,151.91,151.85,2.633]
[1642071155957,24.32515472,151.91,151.85,2.633]
[1642071156562,34.20225472,151.91,151.85,12.5094]
[1642071156958,24.07515472,151.91,151.85,12.7594]
[1642071157760,24.07515472,151.91,151.85,18.7594]
[1642071158060,24.07515472,151.91,151.85,12.5094]
[1642071158458,24.07515472,151.91,151.85,18.5094]
[1642071158659,12.133,151.98,151.85,18.5094]
[1642071158858,19.3724,151.98,151.85,26.33791714]
[1642071159062,19.3724,151.98,151.9,9.8733]
[1642071159460,24.1382402,151.97,151.86,56.3632]
[1642071159759,26.7702402,151.97,151.86,62.3632]
[1642071159959,36.8933402,151.97,151.86,62.3632]
[1642071160762,36.8933402,151.97,151.87,2.633]
[1642071160961,36.8933402,151.97,151.87,8.883]
[1642071161160,36.8933402,151.97,151.89,9.8738]
[1642071161563,36.8933402,151.97,151.89,12.5058]
[1642071162561,36.8933402,151.97,151.89,2.632]
[1642071163562,36.8933402,151.97,151.88,35.7632]
[1642071163765,36.8933402,151.97,151.88,33.1312]
[1642071166165,36.8933402,151.97,151.88,23.2567]
[1642071171393,36.8933402,151.97,151.88,25.8887]
[1642071171894,36.8933402,151.97,151.88,35.7632]
[1642071172091,36.8933402,151.97,151.88,33.1312]
[1642071175312,36.8933402,151.97,151.88,39.1312]
[1642071176512,36.8933402,151.97,151.89,2.632]
[1642071176916,36.8933402,151.97,151.89,12.5058]
[1642071178350,36.8933402,151.97,151.89,9.8738]
[1642071179152,36.8933402,151.97,151.9,24.7315]
[1642071180953,36.8933402,151.97,151.89,9.8738]
[1642071183253,36.8933402,151.97,151.9,24.7362]
[1642071197807,36.6433402,151.97,151.9,24.7362]
[1642071198208,34.0113402,151.97,151.9,24.7362]
[1642071199112,34.2613402,151.97,151.9,24.7362]
[1642071199510,11.14912182,151.96,151.88,2.632]
[1642071199710,9.8781,151.92,151.88,2.632]
[1642071199910,2.633,151.91,151.88,2.632]
[1642071200110,2.883,151.91,151.88,2.632]
[1642071200312,0.25,151.91,151.88,2.632]
[1642071200612,25.40844829,151.9,151.88,2.632]
[1642071201010,25.65844829,151.9,151.88,2.632]
[1642071201212,35.53704829,151.9,151.88,2.632]
[1642071204119,9.881,151.85,151.8,2.633]
[1642071204316,9.881,151.85,151.79,2.633]
[1642071204515,23.89067174,151.84,151.78,29.80112085]
[1642071204916,24.14067174,151.84,151.78,29.80112085]
[1642071205321,24.14067174,151.84,151.78,30.05112085]
[1642071205518,24.14067174,151.84,151.78,29.80112085]
[1642071205717,24.14067174,151.84,151.78,26.0604]
[1642071205917,24.14067174,151.84,151.78,32.0604]
[1642071206922,9.8817,151.83,151.78,29.4264]
[1642071207320,10.1317,151.83,151.78,29.4264]
[1642071207521,10.1317,151.83,151.78,23.4264]
[1642071208422,10.1317,151.83,151.77,2.634]
[1642071208622,19.66182182,151.83,151.76,78.2429]
[1642071208822,17.35497835,151.83,151.76,78.2429]
[1642071209722,12.10797835,151.83,151.76,109.83567611]
[1642071209925,9.8805,151.85,151.76,109.83567611]
[1642071210123,9.5,151.87,151.76,109.83567611]
[1642071210322,9.5,151.87,151.78,9.8805]
[1642071210524,9.5,151.87,151.78,10.1305]
[1642071210921,9.5,151.87,151.79,30.96719821]
[1642071211122,9.88,151.86,151.79,30.96719821]
[1642071211323,9.88,151.86,151.79,31.21719821]
[1642071211923,9.88,151.86,151.79,0.25]
[1642071212225,9.88,151.86,151.79,10.1304]
[1642071212623,9.88,151.86,151.79,9.8804]
[1642071213023,10.13,151.86,151.79,9.8804]
[1642071214928,24.80736789,151.85,151.79,9.8804]
[1642071215326,25.05736789,151.85,151.79,9.8804]
[1642071215527,25.05736789,151.85,151.78,12.515]
[1642071215954,34.93866789,151.85,151.78,12.515]
[1642071216160,2.634,151.84,151.78,9.881]
[1642071216354,34.93866789,151.85,151.78,9.881]
[1642071216754,25.05736789,151.85,151.78,9.881]
[1642071217157,0.25,151.85,151.78,9.881]
[1642071217657,2.634,151.88,151.79,2.634]
[1642071217856,2.634,151.9,151.79,26.1891]
[1642071218056,10.1281,151.9,151.82,9.8782]
[1642071218356,26.56499178,151.9,151.83,2.634]
[1642071218556,26.56499178,151.9,151.81,31.8050844]
[1642071218758,26.56499178,151.9,151.82,2.884]
[1642071219557,26.56499178,151.9,151.82,27.379]
[1642071220257,26.56499178,151.9,151.83,9.8774]
[1642071223567,26.31499178,151.9,151.83,9.8774]
[1642071223767,2.633,151.91,151.84,2.633]
[1642071223968,2.633,151.91,151.87,9.8743]
[1642071224972,2.633,151.91,151.87,15.8743]
[1642071227369,2.633,151.91,151.88,2.633]
[1642071227574,2.633,151.91,151.89,15.93829993]
[1642071228372,1.633,151.91,151.89,16.18829993]
[1642071228774,1.633,151.91,151.9,2.633]
[1642071228974,1.633,151.91,151.9,2.883]
[1642071229173,1.633,151.91,151.9,38.10304694]
[1642071229975,1.633,151.91,151.9,12.7556]
[1642071231385,1.633,151.91,151.9,12.5056]
[1642071231678,1.633,151.91,151.9,12.7556]
[1642071232479,27.76999576,151.96,151.9,12.7556]
[1642071233477,22.0052,151.99,151.9,18.7556]
[1642071233478,12.133,151.99,151.9,18.7556]
[1642071233977,9.75,151.99,151.9,18.7556]
[1642071234377,9.75,151.99,151.91,23.3323]
[1642071234612,40.90678752,151.99,151.93,9.8713]
[1642071235979,43.53878752,151.99,151.93,9.8713]
[1642071239585,43.53878752,151.99,151.91,23.5823]
[1642071239784,53.41098752,151.99,151.91,23.3323]
[1642071242185,53.41098752,151.99,151.91,33.2048]
[1642071244487,53.41098752,151.99,151.91,39.4548]
[1642071244890,53.41098752,151.99,151.91,33.4548]
[1642071245288,53.16098752,151.99,151.91,33.4548]
[1642071246588,53.16098752,151.99,151.91,39.4548]
[1642071246788,53.41098752,151.99,151.91,39.4548]
[1642071247088,53.41098752,151.99,151.91,33.2048]
[1642071248991,53.41098752,151.99,151.91,39.2048]
[1642071249891,53.16098752,151.99,151.91,39.2048]
[1642071250092,53.16098752,151.99,151.91,39.4548]
[1642071251396,53.41098752,151.99,151.91,39.4548]
[1642071253501,43.53878752,151.99,151.91,39.4548]
[1642071257527,12.382,151.99,151.91,39.4548]
[1642071258227,12.382,151.99,151.91,42.0868]
[1642071259928,2.882,151.99,151.91,42.0868]
[1642071264736,0.25,151.99,151.91,42.0868]
[1642071265038,6.06339942,152.0,151.91,42.0868]
[1642071269444,4.37553539,152.0,151.91,42.0868]
[1642071269648,4.37553539,152.0,151.91,115.28731714]
[1642071269649,1.74353539,152.0,151.91,115.28731714]
[1642071270047,1.74353539,152.0,151.91,114.1948]
[1642071270446,1.74353539,152.02,151.91,116.07175763]
[1642071270846,1.99353539,152.02,151.91,116.07175763]
[1642071271048,1.74353539,152.02,151.92,9.5]
[1642071271249,1.74353539,152.02,151.97,9.8667]
[1642071271551,1.74353539,152.02,151.97,21.8547]
[1642071271749,1.74353539,152.02,151.98,1.09251714]
[1642071271947,1.74353539,152.02,151.99,26.57629043]
[1642071272149,2.632,152.03,152.0,3.03219997]
[1642071272549,2.632,152.03,152.0,19.14729997]
[1642071275249,2.632,152.03,152.01,3.03219996]
[1642071275448,2.632,152.03,152.02,9.8649]
[1642071275649,2.632,152.03,152.02,12.89709997]
[1642071275875,2.632,152.03,152.02,18.89709997]
[1642071276754,1.74353539,152.07,152.02,25.21109997]
[1642071276954,1.74353539,152.08,152.02,92.44361711]
[1642071278050,1.74353539,152.11,152.02,92.44361711]
[1642071278252,1.74353539,152.11,152.07,9.862]
[1642071278950,1.74353539,152.11,152.07,15.862]
[1642071279150,2.63,152.13,152.07,15.862]
[1642071279753,2.88,152.13,152.07,15.862]
[1642071282056,2.63,152.13,152.07,15.862]
[1642071282356,4.37253539,152.14,152.07,81.992]
[1642071282555,1.74353539,152.15,152.07,83.34451714]
[1642071282755,1.74353539,152.15,152.08,9.5]
[1642071282956,1.74353539,152.15,152.09,65.88]
[1642071283156,1.74353539,152.15,152.12,24.62834945]
[1642071283382,1.74353539,152.2,152.13,6.06439993]
[1642071283556,1.74353539,152.2,152.13,12.31439993]
[1642071284355,25.54099587,152.21,152.13,12.31439993]
[1642071284557,25.54099587,152.21,152.13,14.94239993]
[1642071285155,25.54099587,152.21,152.13,24.79899993]
[1642071285954,25.79099587,152.21,152.13,24.79899993]
[1642071286555,0.25,152.21,152.13,24.79899993]
[1642071286957,2.879,152.22,152.13,24.79899993]
[1642071287559,24.60076798,152.21,152.13,24.79899993]
[1642071287958,24.85076798,152.21,152.13,18.79899993]
[1642071288360,24.85076798,152.21,152.13,16.17099993]
[1642071288762,24.85076798,152.21,152.13,15.92099993]
[1642071288962,34.70906798,152.21,152.13,6.06439993]
[1642071289262,2.628,152.2,152.13,6.06439993]
[1642071289461,2.878,152.2,152.13,6.06439993]
[1642071290162,12.737,152.2,152.13,6.06439993]
[1642071292791,12.737,152.2,152.1,2.628]
[1642071292991,12.737,152.2,152.07,26.3973]
[1642071293193,35.8406,152.2,152.07,32.3973]
[1642071293991,35.8406,152.2,152.07,32.6473]
[1642071294191,35.8406,152.2,152.09,9.8609]
[1642071294490,35.8406,152.2,152.09,10.1109]
[1642071294897,35.8406,152.2,152.09,9.8609]
[1642071295109,9.5,152.19,152.07,2.628]
[1642071295395,9.8641,152.12,152.03,2.629]
[1642071295596,2.63,152.11,152.02,24.2397]
[1642071295992,32.37370977,152.11,152.02,46.70781915]
[1642071296193,29.74370977,152.11,152.03,2.63]
[1642071296795,29.74370977,152.11,152.03,2.88]
[1642071297196,39.60860977,152.11,152.03,12.7449]
[1642071299020,0.25,152.11,152.03,18.7449]
[1642071299221,0.25,152.11,152.04,23.8389]
[1642071299421,0.25,152.12,152.05,9.8633]
[1642071299624,25.4289,152.14,152.05,9.8633]
[1642071301223,9.8633,152.13,152.05,9.8633]
[1642071301523,2.63,152.12,152.05,9.8633]
[1642071301723,2.88,152.13,152.05,10.1133]
[1642071301924,0.25,152.12,152.05,12.7433]
[1642071302148,0.25,152.13,152.05,12.7433]
[1642071302948,22.7989,152.14,152.05,12.7433]
[1642071303650,22.7989,152.14,152.05,18.7433]
[1642071304255,25.4279,152.14,152.05,18.7433]
[1642071305251,32.6615,152.14,152.05,18.7433]
[1642071307955,32.4115,152.14,152.05,18.7433]
[1642071308155,10.1126,152.14,152.05,18.7433]
[1642071308356,9.8626,152.14,152.05,18.7433]
[1642071308556,10.1126,152.14,152.05,18.7433]
[1642071309457,10.1126,152.14,152.06,24.5938]
[1642071309658,10.1126,152.14,152.07,12.4912]
[1642071310057,10.1126,152.14,152.07,12.7412]
[1642071310560,38.72483795,152.15,152.07,18.7412]
[1642071311059,29.11283795,152.15,152.07,18.7412]
[1642071311860,28.86283795,152.15,152.07,18.7412]
[1642071312059,28.86283795,152.15,152.08,23.03610946]
[1642071312260,28.86283795,152.15,152.1,9.8603]
[1642071312459,28.86283795,152.15,152.1,10.1103]
[1642071312863,28.86283795,152.15,152.1,9.8603]
[1642071313061,28.86283795,152.15,152.1,10.1103]
[1642071313260,27.11930256,152.15,152.1,10.1103]
[1642071314461,27.11930256,152.15,152.1,0.25]
[1642071314661,27.11930256,152.15,152.09,35.6469]
[1642071314862,27.11930256,152.15,152.09,33.0179]
[1642071315664,28.86283795,152.15,152.09,33.0179]
[1642071316365,27.11930256,152.15,152.09,33.0179]
[1642071316567,27.11930256,152.15,152.09,23.1569]
[1642071317166,28.86283795,152.15,152.09,23.1569]
[1642071318170,1.74353539,152.14,152.09,33.0179]
[1642071318869,1.74353539,152.14,152.09,32.7679]
[1642071319071,1.74353539,152.14,152.09,33.0179]
[1642071321320,1.74353539,152.13,152.09,33.0179]
[1642071326649,1.74353539,152.13,152.09,23.1569]
[1642071328654,1.74353539,152.13,152.09,22.9069]
[1642071328855,1.74353539,152.13,152.09,23.1569]
[1642071329554,1.74353539,152.13,152.09,22.9069]
[1642071329955,1.99353539,152.13,152.09,22.9069]
[1642071330859,1.74353539,152.12,152.09,22.9069]
[1642071333061,1.74353539,152.12,152.1,6.06439993]
[1642071333264,1.74353539,152.12,152.09,22.9069]
[1642071334865,1.74353539,152.13,152.09,22.9069]
[1642071337370,11.60673539,152.13,152.06,2.629]
[1642071337570,2.629,152.12,152.06,2.629]
[1642071337770,4.37253539,152.12,152.06,2.629]
[1642071337970,4.62253539,152.12,152.06,2.629]
[1642071338370,9.8652,152.1,152.06,2.629]
[1642071338570,26.38708709,152.09,152.06,2.629]
[1642071339772,1.74353539,152.1,152.04,9.864]
[1642071339971,1.74353539,152.1,152.07,3.03219997]
[1642071340371,1.74353539,152.1,152.08,3.03219996]
[1642071341174,28.06148617,152.12,152.09,3.03219997]
[1642071341975,1.74353539,152.12,152.09,3.03219997]
[1642071342175,1.74353539,152.12,152.1,3.03219996]
[1642071344502,1.74353539,152.12,152.1,6.31439993]
[1642071344700,1.74353539,152.12,152.1,6.06439993]
[1642071345500,1.74353539,152.14,152.1,6.06439993]
[1642071347104,1.74353539,152.14,152.1,6.31439993]
[1642071347305,1.74353539,152.14,152.1,6.06439993]
[1642071348404,1.99353539,152.14,152.1,6.06439993]
[1642071349505,1.74353539,152.13,152.1,6.06439993]
[1642071350105,1.74353539,152.13,152.09,9.8609]
[1642071350604,1.74353539,152.13,152.09,10.1109]
[1642071351004,1.74353539,152.13,152.09,0.25]
[1642071351710,1.74353539,152.13,152.08,33.7812]
[1642071351907,1.74353539,152.13,152.08,39.7812]
[1642071352307,1.74353539,152.13,152.08,33.7812]
[1642071352508,1.74353539,152.13,152.08,39.7812]
[1642071352807,1.74353539,152.13,152.08,33.7812]
[1642071353008,1.74353539,152.13,152.08,39.7812]
[1642071354410,1.74353539,152.13,152.08,33.7812]
[1642071354812,1.74353539,152.13,152.07,2.629]
[1642071355010,10.29653539,152.13,152.06,78.5043]
[1642071355612,20.15983539,152.13,152.06,78.5043]
[1642071356012,11.85683539,152.13,152.06,78.5043]
[1642071356214,1.74353539,152.11,152.06,78.5043]
[1642071357015,1.74353539,152.11,152.06,78.7543]
[1642071357216,1.74353539,152.12,152.06,78.7543]
[1642071357415,1.74353539,152.12,152.07,2.629]
[1642071357916,1.74353539,152.12,152.07,2.879]
[1642071359019,1.74353539,152.12,152.07,35.6065]
[1642071361020,1.74353539,152.12,152.07,41.6065]